fUST/lending_fUST_20250827
["ID","MTS","AMOUNT","RATE_DAILY","PERIOD"]
[381546339,1756277439923,-500.0,0.00026633,2]
[381546340,1756277439933,-500.0,0.00026633,2]
[381546341,1756277439942,-151.0,0.00026633,2]
[381546342,1756277439952,-151.50829414,0.00026633,2]
[381546343,1756277439961,-151.0,0.00026633,2]
[381546344,1756277439970,-151.0,0.00026633,2]
[381546345,1756277439979,-151.18953785,0.00026633,2]
[381546346,1756277439989,-151.0055701,0.00026633,2]
[381546347,1756277439998,-151.0,0.00026633,2]
[381546348,1756277440007,-151.0,0.00026633,2]
[381546349,1756277440016,-151.0,0.00026633,2]
[381546350,1756277440026,-866.0,0.00026633,2]
[381546351,1756277440035,-151.0,0.00026633,2]
[381546352,1756277440045,-500.0,0.00026633,2]
[381546353,1756277440054,-500.0,0.00026633,2]
[381546354,1756277440063,-151.0,0.00026633,2]
[381546355,1756277440073,-500.0,0.00026633,2]
[381546357,1756277440082,-151.34928729,0.00026633,2]
[381546359,1756277440091,-151.65045741,0.00026633,2]
[381546361,1756277440101,-151.0,0.00026633,2]
[381546363,1756277440110,-198.0,0.00026633,2]
[381546364,1756277440119,-211.23630374,0.00026633,2]
[381546366,1756277440128,-500.0,0.00026633,2]
[381546368,1756277440137,-151.0,0.00026633,2]
[381546369,1756277440147,-500.0,0.00026673,2]
[381546370,1756277440156,-528.693496,0.00026676,2]
[381546371,1756277440166,-1334.15203917,0.0002669,2]
[381546372,1756277440175,-15549.47,0.000267,2]
[381546373,1756277440184,-4980.37,0.000267,7]
[381546374,1756277440193,-151.0,0.000268,14]
[381546375,1756277440203,-151.0,0.000268,13]
[381546376,1756277440212,-6590.24512136,0.000268,2]
[381546377,1756277440222,-6948.53210592,0.00026806,6]
[381546378,1756277440231,-2000.0,0.00026816,2]
[381546379,1756277440241,-151.0,0.000269,19]
[381546380,1756277440251,-206.706763,0.000269,20]
[381546381,1756277440260,-151.0,0.00026907,2]
[381546382,1756277440269,-151.0,0.00026907,2]
[381546383,1756277440279,-151.0,0.00026907,2]
[381546384,1756277440289,-500.0,0.00026907,2]
[381546385,1756277440298,-500.0,0.00026907,2]
[381546386,1756277440308,-151.93706904,0.00026907,2]
[381546387,1756277440317,-151.0,0.00026907,2]
[381546388,1756277440326,-151.70332095,0.00026907,2]
[381546389,1756277440336,-151.0,0.00026907,2]
[381546390,1756277440345,-230.93347901,0.00026907,2]
[381546391,1756277440354,-866.0,0.00026907,2]
[381546392,1756277440363,-155.18906074,0.00026907,2]
[381546393,1756277440373,-500.0,0.00026907,2]
[381546394,1756277440382,-500.0,0.00026907,2]
[381546395,1756277440393,-151.0,0.00026907,2]
[381546396,1756277440408,-500.0,0.00026907,2]
[381546397,1756277440418,-151.0,0.00026907,2]
[381546398,1756277440427,-500.0,0.00026907,2]
[381546399,1756277440436,-198.00310054,0.00026907,2]
[381546400,1756277440445,-437.37723385,0.00026916,2]
[381546401,1756277440455,-1256.0,0.00026916,2]
[381546402,1756277440464,-1005.76236737,0.00026916,2]
[381546403,1756277440474,-558.31373769,0.00026916,2]
[381546404,1756277440484,-2000.0,0.00026916,2]
[381546405,1756277440493,-2000.0,0.00026916,2]
[381546406,1756277440502,-151.0,0.00026944,2]
[381546407,1756277440511,-1334.15203917,0.00026971,2]
[381546408,1756277440520,-500.0,0.00026973,2]
[381546409,1756277440530,-150.0,0.00026973,2]
[381546410,1756277440539,-500.0,0.00026973,2]
[381546411,1756277440550,-500.0,0.00026981,2]
[381546412,1756277440559,-500.0,0.00026981,2]
[381546413,1756277440568,-500.0,0.00026981,2]
[381546414,1756277440578,-1334.15203917,0.0002699,2]
[381546415,1756277440606,-206.706763,0.00027,3]
[381546416,1756277440615,-71480.97,0.00027,7]
[381546417,1756277440625,-160.0,0.00027,3]
[381546419,1756277440634,-417.15472785,0.00027,7]
[381546421,1756277440643,-425.44119842,0.00027,7]
[381546422,1756277440652,-500.0,0.00027019,2]
[381546424,1756277440661,-500.0,0.00027019,2]
[381546425,1756277440671,-500.0,0.00027019,2]
[381546426,1756277440680,-500.0,0.00027019,2]
[381546427,1756277440690,-500.0,0.00027019,2]
[381546428,1756277440699,-154.86355859,0.00027019,2]
[381546429,1756277440708,-258.92923988,0.00027019,2]
[381546430,1756277440717,-500.0,0.00027019,2]
[381546431,1756277440729,-501.52291206,0.00027023,2]
[381546432,1756277440739,-413.95211664,0.00027023,2]
[381546433,1756277440748,-500.0,0.00027023,2]
[381546434,1756277440757,-500.0,0.00027023,2]
[381546435,1756277440766,-5000.0,0.00027064,2]
[381546436,1756277440777,-360.0,0.00027096,2]
[381546437,1756277440792,-1000.2992067,0.00027123,3]
[381546438,1756277440801,-1848.76847288,0.00027156,2]
[381546439,1756277440811,-1334.15203917,0.00027171,2]
[381546440,1756277440821,-151.0,0.00027181,2]
[381546441,1756277440831,-151.0,0.00027181,2]
[381546442,1756277440840,-151.0,0.00027181,2]
[381546443,1756277440849,-500.0,0.00027181,2]
[381546444,1756277440859,-500.0,0.00027181,2]
[381546446,1756277440868,-247.28071032,0.00027181,2]
[381546448,1756277440878,-866.0,0.00027181,2]
[381546449,1756277440887,-500.0,0.00027181,2]
[381546450,1756277440895,-500.0,0.00027181,2]
[381546452,1756277440904,-151.95393366,0.00027181,2]
[381546453,1756277440914,-500.0,0.00027181,2]
[381546454,1756277440923,-151.0,0.00027181,2]
[381546455,1756277440933,-500.0,0.00027181,2]
[381546456,1756277440942,-5503.7442976,0.00027184,2]
[381546457,1756277440951,-151.0,0.00027218,2]
[381546458,1756277440960,-1000.0,0.00027221,2]
[381546459,1756277440970,-170.9158749,0.00027283,2]
[381546460,1756277440979,-4222.04906339,0.00027339,2]
[381546461,1756277440988,-620.8009039,0.0002734,2]
[381546462,1756277440997,-587.0,0.00027347,2]
[381546463,1756277441006,-2500.0,0.00027364,2]
[381546464,1756277441016,-500.0,0.00027397,5]
[381546465,1756277441027,-6989.83,0.000274,7]
[381546466,1756277441038,-151.0,0.000274,17]
[381546467,1756277441047,-151.0,0.00027455,2]
[381546468,1756277441056,-151.70519922,0.00027455,2]
[381546469,1756277441065,-500.0,0.00027455,2]
[381546470,1756277441074,-503.19506388,0.00027455,2]
[381546471,1756277441083,-866.0,0.00027455,2]
[381546472,1756277441092,-500.0,0.00027455,2]
[381546473,1756277441101,-427.37048483,0.00027455,2]
[381546474,1756277441110,-153.92893483,0.00027455,2]
[381546475,1756277441119,-151.0,0.00027455,2]
[381546476,1756277441129,-500.0,0.00027455,2]
[381546477,1756277441139,-580.57302043,0.00027464,5]
[381546478,1756277441148,-2500.0,0.00027464,5]
[381546479,1756277441157,-206.706763,0.00027481,20]
[381546480,1756277441166,-151.0,0.00027492,2]
[381546481,1756277441175,-151.0,0.000275,16]
[381546482,1756277441184,-516.978478,0.00027502,2]
[381546483,1756277441193,-1334.15203917,0.00027519,2]
[381546484,1756277441203,-250.0,0.00027521,5]
[381546485,1756277441212,-579.23238633,0.00027521,5]
[381546486,1756277441220,-1000.0,0.00027521,5]
[381546487,1756277441230,-502.46213118,0.00027529,5]
[381546488,1756277441239,-1000.0,0.00027529,5]
[381546489,1756277441248,-1002.51504051,0.00027529,5]
[381546490,1756277441258,-1000.0,0.00027567,2]
[381546491,1756277441267,-503.2238651,0.00027567,5]
[381546492,1756277441276,-503.96849117,0.00027567,5]
[381546493,1756277441285,-1000.0,0.00027567,5]
[381546494,1756277441294,-1000.0,0.00027567,2]
[381546495,1756277441304,-1000.0,0.00027567,5]
[381546496,1756277441313,-1000.0,0.00027571,5]
[381546497,1756277441323,-1000.0,0.00027571,5]
[381546498,1756277441332,-460.0,0.00027644,2]
[381546499,1756277441342,-151.0,0.00027729,2]
[381546500,1756277441351,-509.54880423,0.00027729,2]
[381546501,1756277441361,-866.0,0.00027729,2]
[381546502,1756277441370,-532.23854974,0.00027729,2]
[381546503,1756277441379,-198.0,0.00027729,2]
[381546504,1756277441389,-151.0,0.00027766,2]
[381546505,1756277441398,-1500.0,0.00027768,2]
[381546506,1756277441407,-1334.15203917,0.00027882,2]
[381546507,1756277441417,-217.15233878,0.00027896,2]
[381546508,1756277441426,-162.06972335,0.00027896,5]
[381546509,1756277441435,-1273.29560583,0.00027912,5]
[381546510,1756277441445,-14462.41423572,0.00027917,2]
[381546511,1756277441455,-160.40370053,0.00027973,5]
[381546512,1756277441465,-150.0,0.00027973,5]
[381546513,1756277441474,-502.20687387,0.00027973,5]
[381546514,1756277441483,-500.0,0.00027973,5]
[381546515,1756277441492,-500.0,0.00027973,5]
[381546516,1756277441501,-500.0,0.00027973,5]
[381546517,1756277441517,-500.0,0.00027973,5]
[381546518,1756277441526,-500.0,0.00027973,5]
[381546519,1756277441536,-500.0,0.00027973,5]
[381546520,1756277441546,-500.0,0.00027973,5]
[381546521,1756277441556,-500.0,0.00027973,5]
[381546522,1756277441565,-500.0,0.00027973,5]
[381546523,1756277441574,-206.706763,0.0002798,2]
[381546524,1756277441583,-151.0,0.00028,12]
[381546525,1756277441594,-151.0,0.00028,14]
[381546526,1756277441603,-15549.47,0.00028,2]
[381546527,1756277441613,-4980.37,0.00028,7]
[381546528,1756277441622,-417.15472785,0.00028,10]
[381546529,1756277441631,-425.44119842,0.00028,10]
[381546530,1756277441640,-198.0,0.00028003,2]
[381546531,1756277441649,-866.0,0.00028003,2]
[381546532,1756277441658,-2668.30407834,0.00028007,2]
[381546533,1756277441667,-3000.0,0.00028012,5]
[381546534,1756277441676,-517594.97754682,0.00028017,2]
[381546535,1756277441685,-151.0,0.00028017,7]
[381546536,1756277441695,-151.0,0.00028017,7]
[381546537,1756277441704,-153.119561,0.00028017,7]
[381546538,1756277441714,-151.0,0.00028017,7]
[381546539,1756277441723,-151.0,0.00028017,7]
[381546540,1756277441732,-190.124591,0.00028017,7]
[381546541,1756277441742,-190.124591,0.00028017,7]
[381546542,1756277441751,-190.124591,0.00028017,7]
[381546543,1756277441760,-190.124591,0.00028017,7]
[381546544,1756277441769,-151.0,0.00028017,7]
[381546545,1756277441781,-151.0,0.00028017,7]
[381546546,1756277441792,-151.0,0.00028017,7]
[381546547,1756277441802,-205.00087,0.00028017,7]
[381546548,1756277441811,-151.0,0.00028017,7]
[381546549,1756277441820,-151.0,0.00028017,7]
[381546550,1756277441831,-151.0,0.00028017,7]
[381546551,1756277441841,-181.951389,0.00028017,7]
[381546552,1756277441852,-181.951389,0.00028017,7]
[381546553,1756277441861,-181.951389,0.00028017,7]
[381546554,1756277441871,-181.951389,0.00028017,7]
[381546555,1756277441880,-151.0,0.00028017,7]
[381546556,1756277441890,-151.0,0.00028017,7]
[381546557,1756277441899,-194.813698,0.00028017,7]
[381546558,1756277441908,-151.0,0.00028017,7]
[381546559,1756277441917,-194.813698,0.00028017,7]
[381546560,1756277441927,-270.049272,0.00028017,7]
[381546561,1756277441936,-194.813698,0.00028017,7]
[381546562,1756277441946,-194.813698,0.00028017,7]
[381546563,1756277441956,-151.0,0.00028017,7]
[381546564,1756277441965,-151.0,0.00028017,7]
[381546565,1756277441975,-151.0,0.00028017,7]
[381546566,1756277441984,-151.0,0.00028017,7]
[381546567,1756277441993,-151.0,0.00028017,7]
[381546568,1756277442002,-151.0,0.00028017,7]
[381546569,1756277442012,-275.83744,0.00028017,7]
[381546570,1756277442021,-151.0,0.00028017,7]
[381546571,1756277442031,-151.0,0.00028017,7]
[381546572,1756277442041,-151.0,0.00028017,7]
[381546573,1756277442051,-189.998145,0.00028017,7]
[381546574,1756277442234,-151.0,0.00028017,7]
[381546576,1756277442244,-151.0,0.00028017,7]
[381546578,1756277442253,-151.0,0.00028017,7]
[381546579,1756277442262,-151.0,0.00028017,7]
[381546581,1756277442272,-151.0,0.00028017,7]
[381546583,1756277442281,-151.785022,0.00028017,7]
[381546584,1756277442290,-151.0,0.00028017,7]
[381546586,1756277442299,-151.0,0.00028017,7]
[381546587,1756277442308,-279.280072,0.00028017,7]
[381546588,1756277442317,-151.0,0.00028017,7]
[381546589,1756277442326,-300.677977,0.00028017,7]
[381546590,1756277442336,-300.677977,0.00028017,7]
[381546591,1756277442345,-151.0,0.00028017,7]
[381546592,1756277442355,-300.677977,0.00028017,7]
[381546593,1756277442365,-300.677977,0.00028017,7]
[381546594,1756277442373,-151.0,0.00028017,7]
[381546595,1756277442382,-151.0,0.00028017,7]
[381546596,1756277442391,-151.0,0.00028017,7]
[381546597,1756277442401,-151.0,0.00028017,7]
[381546598,1756277442410,-157.69187,0.00028017,7]
[381546599,1756277442419,-157.69187,0.00028017,7]
[381546600,1756277442429,-157.69187,0.00028017,7]
[381546601,1756277442438,-1002.41907,0.00028017,7]
[381546602,1756277442447,-157.69187,0.00028017,7]
[381546603,1756277442456,-151.0,0.00028017,7]
[381546604,1756277442465,-151.0,0.00028017,7]
[381546605,1756277442475,-151.0,0.00028017,7]
[381546606,1756277442484,-151.0,0.00028017,7]
[381546607,1756277442493,-235.914186,0.00028017,7]
[381546608,1756277442503,-183.467516,0.00028017,7]
[381546609,1756277442512,-235.914186,0.00028017,7]
[381546610,1756277442521,-235.914186,0.00028017,7]
[381546611,1756277442531,-1002.41907,0.00028017,7]
[381546612,1756277442541,-235.914186,0.00028017,7]
[381546613,1756277442550,-1002.41907,0.00028017,7]
[381546614,1756277442559,-151.0,0.00028017,7]
[381546615,1756277442569,-151.0,0.00028017,7]
[381546616,1756277442578,-1002.41907,0.00028017,7]
[381546617,1756277442588,-151.0,0.00028017,7]
[381546618,1756277442597,-151.0,0.00028017,7]
[381546619,1756277442607,-206.302463,0.00028017,7]
[381546620,1756277442616,-1072.102854,0.00028017,7]
[381546621,1756277442626,-1072.102854,0.00028017,7]
[381546622,1756277442635,-151.0,0.00028017,7]
[381546623,1756277442645,-151.0,0.00028017,7]
[381546624,1756277442655,-1072.102854,0.00028017,7]
[381546625,1756277442664,-1072.102854,0.00028017,7]
[381546626,1756277442673,-151.0,0.00028017,7]
[381546627,1756277442683,-151.0,0.00028017,7]
[381546628,1756277442692,-151.0,0.0002804,2]
[381546629,1756277442702,-206.706763,0.00028063,20]
[381546630,1756277442712,-452.02431384,0.00028068,5]
[381546631,1756277442722,-1474.470482,0.00028068,5]
[381546632,1756277442731,-1500.0,0.00028077,5]
[381546633,1756277442741,-1586.16377958,0.00028115,2]
[381546634,1756277442751,-1500.0,0.00028115,5]
[381546635,1756277442760,-1161.64318891,0.00028115,2]
[381546636,1756277442770,-1500.0,0.00028115,5]
[381546637,1756277442782,-1500.0,0.00028119,5]
[381546638,1756277442792,-184.41567228,0.00028119,5]
[381546639,1756277442801,-560.0,0.00028192,2]
[381546640,1756277442811,-206.706763,0.00028213,3]
[381546641,1756277442820,-150.0,0.00028273,5]
[381546642,1756277442830,-150.0,0.00028273,5]
[381546644,1756277442840,-866.0,0.00028277,2]
[381546646,1756277442850,-71480.97,0.000283,7]
[381546648,1756277442862,-151.94225115,0.00028314,2]
[381546651,1756277442872,-2000.0,0.00028316,2]
[381546652,1756277442882,-252.03074768,0.00028521,5]
[381546655,1756277442891,-1000.0,0.00028521,5]
[381546657,1756277442900,-1002.44756534,0.00028521,5]
[381546660,1756277442910,-1000.0,0.00028521,5]
[381546663,1756277442919,-1000.0,0.00028521,5]
[381546664,1756277442929,-1000.0,0.00028521,5]
[381546665,1756277442938,-1000.0,0.00028521,5]
[381546666,1756277442948,-1000.0,0.00028521,5]
[381546667,1756277442957,-1000.0,0.00028521,5]
[381546669,1756277442966,-6948.53210592,0.00028533,10]
[381546671,1756277442975,-866.0,0.00028551,2]
[381546673,1756277442985,-3500.0,0.0002856,5]
[381546675,1756277442994,-500.0,0.00028573,5]
[381546677,1756277443003,-500.0,0.00028573,5]
[381546679,1756277443012,-151.0,0.000286,17]
[381546681,1756277443022,-206.706763,0.000286,10]
[381546683,1756277443032,-151.0,0.000286,19]
[381546685,1756277443041,-417.15472785,0.000286,10]
[381546687,1756277443051,-216.14835892,0.000286,10]
[381546689,1756277443060,-529.56067766,0.000286,10]
[381546691,1756277443069,-398.07412314,0.00028625,5]
[381546693,1756277443078,-206.706763,0.00028645,20]
[381546695,1756277443088,-2000.0,0.00028663,5]
[381546697,1756277443097,-1510.45820748,0.00028663,5]
[381546699,1756277443106,-2000.0,0.00028667,5]
[381546701,1756277443115,-660.0,0.0002874,2]
[381546703,1756277443124,-163.3,0.00028758,15]
[381546705,1756277443133,-166.72,0.00028758,15]
[381546707,1756277443142,-2978.28,0.00028798,2]
[381546709,1756277443151,-300.0,0.00028821,5]
[381546711,1756277443160,-250.0,0.00028821,5]
[381546713,1756277443170,-866.0,0.00028825,2]
[381546715,1756277443179,-163.3,0.00028858,15]
[381546717,1756277443188,-166.72180674,0.00028858,15]
[381546719,1756277443197,-2000.03069539,0.00028864,2]
[381546721,1756277443207,-163.3,0.00028958,15]
[381546723,1756277443216,-163.3,0.00029058,15]
[381546725,1756277443225,-1500.0,0.00029068,5]
[381546727,1756277443235,-1500.0,0.00029068,5]
[381546729,1756277443245,-847.35570464,0.00029068,5]
[381546731,1756277443255,-1500.0,0.00029068,5]
[381546733,1756277443264,-1181.72219964,0.00029068,5]
[381546735,1756277443273,-1500.0,0.00029068,5]
[381546737,1756277443284,-1508.32274485,0.00029068,5]
[381546739,1756277443293,-160.0,0.00029094,2]
[381546741,1756277443303,-866.0,0.00029099,2]
[381546743,1756277443312,-217.23771399,0.00029106,2]
[381546745,1756277443322,-160.0,0.00029106,2]
[381546747,1756277443331,-845.298898,0.00029108,2]
[381546749,1756277443340,-160.0,0.00029108,2]
[381546751,1756277443349,-160.0,0.00029108,2]
[381546753,1756277443359,-232.59867797,0.00029108,2]
[381546755,1756277443368,-425.44119842,0.00029108,2]
[381546757,1756277443377,-4000.0,0.00029108,5]
[381546759,1756277443386,-250.0,0.00029113,2]
[381546761,1756277443395,-1000.0,0.00029121,5]
[381546763,1756277443404,-335.82975421,0.00029121,5]
[381546765,1756277443414,-163.32186066,0.00029158,15]
[381546767,1756277443425,-501.31286115,0.00029173,5]
[381546769,1756277443435,-151.0,0.000292,10]
[381546771,1756277443445,-151.0,0.000292,20]
[381546773,1756277443454,-15549.47,0.000292,2]
[381546775,1756277443463,-2378.23275205,0.00029211,5]
[381546777,1756277443472,-505.47448285,0.00029215,5]
[381546779,1756277443481,-206.706763,0.00029226,20]
[381546781,1756277443491,-173.533168,0.00029226,20]
[381546783,1756277443500,-225.18697532,0.00029265,2]
[381546785,1756277443510,-760.0,0.00029288,2]
[381546787,1756277443519,-4980.37,0.000293,7]
[381546789,1756277443528,-12707.75045307,0.00029367,2]
[381546791,1756277443537,-451.05750653,0.00029368,5]
[381546793,1756277443547,-350.0,0.00029368,5]
[381546795,1756277443556,-866.0,0.00029373,2]
[381546797,1756277443565,-206.706763,0.00029427,3]
[381546799,1756277443574,-153.0,0.00029452,2]
[381546801,1756277443583,-153.0,0.00029452,2]
[381546803,1756277443593,-153.0,0.00029452,2]
[381546805,1756277443602,-153.0,0.00029452,2]
[381546807,1756277443611,-153.0,0.00029452,2]
[381546809,1756277443621,-153.0,0.00029452,2]
[381546811,1756277443630,-153.0,0.00029483,2]
[381546813,1756277443639,-153.0,0.00029483,2]
[381546815,1756277443648,-1440.207087,0.00029589,120]
[381546817,1756277443657,-71480.97,0.000296,7]
[381546819,1756277443666,-506.92283959,0.00029616,5]
[381546821,1756277443676,-2000.0,0.00029616,5]
[381546823,1756277443686,-1514.87906202,0.00029616,5]
[381546825,1756277443695,-2000.0,0.00029616,5]
[381546827,1756277443704,-866.0,0.00029647,2]
[381546829,1756277443713,-2283.18941831,0.00029656,5]
[381546831,1756277443722,-1500.0,0.00029668,5]
[381546833,1756277443732,-823.0,0.0002968,2]
[381546835,1756277443741,-1627.0,0.00029709,2]
[381546837,1756277443752,-151.0,0.000298,14]
[381546839,1756277443762,-151.0,0.000298,20]
[381546841,1756277443771,-860.0,0.00029836,2]
[381546843,1756277443780,-371.0,0.00029907,2]
[381546845,1756277443789,-450.0,0.00029916,5]
[381546847,1756277443799,-866.0,0.00029921,2]
[381546849,1756277443814,-371.0,0.00029927,7]
[381546851,1756277443823,-2235.0,0.0003,7]
[381546853,1756277443833,-250.0,0.0003,120]
[381546855,1756277443842,-1000.0,0.0003,7]
[381546857,1756277443853,-500.0,0.0003,2]
[381546860,1756277443862,-500.0,0.0003,2]
[381546862,1756277443871,-4000.0,0.0003,4]
[381546864,1756277443883,-206.706763,0.00030025,10]
[381546866,1756277443894,-1627.0,0.00030135,2]
[381546868,1756277443903,-38251.8561977,0.00030137,2]
[381546870,1756277443916,-401.00805918,0.00030141,2]
[381546872,1756277443932,-371.0,0.00030146,2]
[381546874,1756277443942,-2500.0,0.00030164,5]
[381546876,1756277443951,-2500.0,0.00030164,5]
[381546878,1756277443961,-371.0,0.00030171,7]
[381546880,1756277443970,-371.0,0.00030193,2]
[381546882,1756277443980,-866.0,0.00030195,2]
[381546884,1756277443990,-1304.27150365,0.00030216,5]
[381546886,1756277444000,-401.00805918,0.00030241,2]
[381546888,1756277444010,-6948.53210592,0.00030259,13]
[381546890,1756277444020,-371.0,0.00030268,2]
[381546892,1756277444030,-151.0,0.000303,19]
[381546894,1756277444040,-401.00805918,0.00030341,2]
[381546896,1756277444050,-960.0,0.00030384,2]
[381546898,1756277444059,-151.0,0.000304,19]
[381546900,1756277444070,-15549.47,0.000304,2]
[381546902,1756277444079,-401.00805918,0.00030441,2]
[381546904,1756277444090,-550.0,0.00030464,5]
[381546906,1756277444100,-804.1282951,0.00030466,2]
[381546908,1756277444110,-866.0,0.00030469,2]
[381546910,1756277444121,-187.40190528,0.00030511,7]
[381546912,1756277444131,-371.0,0.00030513,2]
[381546914,1756277444141,-401.00805918,0.00030541,2]
[381546916,1756277444151,-6989.83,0.000306,7]
[381546918,1756277444160,-4980.37,0.000306,7]
[381546920,1756277444169,-371.0,0.00030623,2]
[381546922,1756277444179,-233.51889341,0.00030634,2]
[381546924,1756277444189,-206.706763,0.0003064,3]
[381546926,1756277444198,-401.00805918,0.00030641,2]
[381546928,1756277444207,-151.0,0.00030642,7]
[381546930,1756277444218,-151.0,0.00030642,7]
[381546932,1756277444227,-151.0,0.00030642,7]
[381546934,1756277444237,-151.0,0.00030642,7]
[381546936,1756277444246,-151.0,0.00030642,7]
[381546938,1756277444256,-151.0,0.00030642,7]
[381546940,1756277444266,-151.0,0.00030642,7]
[381546942,1756277444275,-151.0,0.00030642,7]
[381546944,1756277444284,-151.0,0.00030642,7]
[381546946,1756277444293,-151.0,0.00030642,7]
[381546948,1756277444303,-151.0,0.00030642,7]
[381546950,1756277444312,-151.0,0.00030642,7]
[381546952,1756277444321,-151.0,0.00030642,7]
[381546954,1756277444330,-300.677977,0.00030642,7]
[381546956,1756277444339,-300.677977,0.00030642,7]
[381546958,1756277444349,-151.0,0.00030642,7]
[381546960,1756277444358,-300.677977,0.00030642,7]
[381546962,1756277444369,-300.677977,0.00030642,7]
[381546964,1756277444378,-151.428142,0.00030642,7]
[381546966,1756277444387,-151.0,0.00030642,7]
[381546968,1756277444396,-157.69187,0.00030642,7]
[381546970,1756277444406,-157.69187,0.00030642,7]
[381546972,1756277444415,-157.69187,0.00030642,7]
[381546974,1756277444424,-1002.41907,0.00030642,7]
[381546976,1756277444433,-157.69187,0.00030642,7]
[381546978,1756277444442,-151.0,0.00030642,7]
[381546980,1756277444451,-151.0,0.00030642,7]
[381546982,1756277444460,-151.0,0.00030642,7]
[381546984,1756277444470,-151.0,0.00030642,7]
[381546985,1756277444482,-235.914186,0.00030642,7]
[381546987,1756277444491,-235.914186,0.00030642,7]
[381546989,1756277444500,-235.914186,0.00030642,7]
[381546991,1756277444509,-1002.41907,0.00030642,7]
[381546993,1756277444518,-235.914186,0.00030642,7]
[381546995,1756277444528,-1002.41907,0.00030642,7]
[381546997,1756277444537,-151.0,0.00030642,7]
[381546999,1756277444546,-151.0,0.00030642,7]
[381547001,1756277444556,-1002.41907,0.00030642,7]
[381547003,1756277444565,-151.0,0.00030642,7]
[381547005,1756277444574,-151.0,0.00030642,7]
[381547007,1756277444583,-1072.102854,0.00030642,7]
[381547009,1756277444592,-1072.102854,0.00030642,7]
[381547011,1756277444602,-151.0,0.00030642,7]
[381547013,1756277444611,-1072.102854,0.00030642,7]
[381547015,1756277444620,-1072.102854,0.00030642,7]
[381547017,1756277444629,-151.0,0.00030642,7]
[381547019,1756277444639,-198.038654,0.00030642,7]
[381547021,1756277444647,-1724.589409,0.000307,6]
[381547023,1756277444656,-2500.0,0.00030712,5]
[381547025,1756277444665,-3000.0,0.00030712,5]
[381547027,1756277444675,-151.0,0.00030725,7]
[381547029,1756277444685,-205.00087,0.00030725,7]
[381547031,1756277444694,-151.0,0.00030725,7]
[381547033,1756277444704,-151.0,0.00030725,7]
[381547035,1756277444713,-181.951389,0.00030725,7]
[381547037,1756277444722,-181.951389,0.00030725,7]
[381547039,1756277444731,-181.951389,0.00030725,7]
[381547041,1756277444740,-181.951389,0.00030725,7]
[381547043,1756277444749,-151.0,0.00030725,7]
[381547045,1756277444758,-151.0,0.00030725,7]
[381547047,1756277444767,-2822.0,0.00030725,7]
[381547049,1756277444777,-371.0,0.00030735,2]
[381547051,1756277444788,-401.00805918,0.00030741,2]
[381547053,1756277444799,-866.0,0.00030743,2]
[381547055,1756277444810,-371.0,0.00030763,2]
[381547057,1756277444819,-71480.97,0.000308,7]
[381547059,1756277444828,-151.0,0.000308,7]
[381547061,1756277444837,-151.0,0.000308,7]
[381547063,1756277444846,-151.0,0.000308,7]
[381547065,1756277444855,-190.124591,0.000308,7]
[381547067,1756277444865,-190.124591,0.000308,7]